bitfinex/quotes_SOLUSD_20251216
["timestamp","ask_amount","ask_price","bid_price","bid_amount"]
[1765876600372,15.94197976,126.19,126.16,0.67]
[1765876600551,2.89488856,126.22,126.17,2.89488856]
[1765876600747,2.89488856,126.23,126.18,2.89488856]
[1765876600977,11.52657351,126.24,126.2,7.92393026]
[1765876601168,2.89488856,126.26,126.22,2.89488856]
[1765876601377,2.89546784,126.26,126.23,0.67]
[1765876601553,0.71,126.26,126.23,0.67]
[1765876601883,16.65255904,126.26,126.23,0.67]
[1765876602394,3.60546784,126.26,126.23,0.67]
[1765876602563,2.89546784,126.24,126.21,0.67]
[1765876602770,2.89546784,126.25,126.22,0.67]
[1765876603468,10.81563257,126.26,126.22,0.67]
[1765876603669,7.92016473,126.26,126.22,0.67]
[1765876603858,21.67687925,126.27,126.23,7.92198956]
[1765876604053,11.52525589,126.27,126.23,7.92198956]
[1765876604272,10.81568267,126.26,126.23,8.59198956]
[1765876604480,10.81568267,126.26,126.24,0.67]
[1765876605167,7.92021483,126.26,126.24,0.67]
[1765876605352,10.81568267,126.26,126.24,0.67]
[1765876605753,7.92021483,126.26,126.24,0.67]
[1765876606598,11.52511378,126.27,126.24,0.67]
[1765876606908,2.89546784,126.26,126.21,19.80736043]
[1765876607058,2.89546784,126.23,126.21,7.9229218]
[1765876607403,2.89546784,126.23,126.2,8.59374555]
[1765876607587,2.89546784,126.21,126.18,0.67]
[1765876607800,2.89546784,126.2,126.16,0.67]
[1765876608181,3.60546784,126.2,126.17,7.92538329]
[1765876608573,0.71,126.2,126.18,7.92502621]
[1765876609016,2.89546784,126.22,126.19,0.67]
[1765876609671,15.94255904,126.23,126.2,7.92393026]
[1765876610199,15.94255904,126.23,126.21,0.67]
[1765876610500,15.94255904,126.23,126.2,8.59393026]
[1765876611698,13.0470912,126.23,126.2,8.59393026]
[1765876611900,2.89546784,126.25,126.21,0.67]
[1765876612602,16.65255904,126.25,126.21,0.67]
[1765876612798,13.0470912,126.25,126.21,3.56546784]
[1765876613003,11.5251734,126.27,126.22,2.89546784]
[1765876613191,2.89546784,126.26,126.22,0.67]
[1765876613503,8.46668853,126.26,126.23,0.67]
[1765876613917,15.67685982,126.26,126.23,0.67]
[1765876614370,7.75668853,126.26,126.23,8.59198332]
[1765876614709,8.46668853,126.26,126.23,8.59198332]
[1765876615075,0.71,126.26,126.23,7.92198332]
[1765876615282,7.75668853,126.25,126.23,8.59202184]
[1765876616104,0.71,126.26,126.23,8.59202184]
[1765876616105,8.46668853,126.26,126.23,8.59202184]
[1765876616308,12.03128951,126.28,126.24,0.67]
[1765876616516,15.67569953,126.28,126.24,0.67]
[1765876617114,16.38569953,126.28,126.24,0.67]
[1765876617288,8.629011,126.28,126.24,0.67]
[1765876617608,16.38569953,126.28,126.24,0.67]
[1765876617814,7.91854273,126.29,126.24,8.42668853]
[1765876618110,29.43166012,126.3,126.26,7.92016473]
[1765876618612,13.0470912,126.28,126.26,7.92016473]
[1765876618786,13.0470912,126.28,126.26,8.59016473]
[1765876619287,13.0470912,126.28,126.26,0.67]
[1765876619483,7.75668853,126.3,126.27,0.67]
[1765876619889,8.46668853,126.3,126.27,0.67]
[1765876620101,8.46668853,126.3,126.27,8.58951272]
[1765876620310,28.72109408,126.31,126.27,8.58951272]
[1765876620482,21.67440555,126.31,126.27,7.91951272]
[1765876620686,29.43109408,126.31,126.27,8.58951272]
[1765876621615,29.43109408,126.31,126.28,0.67]
[1765876622220,8.46668853,126.3,126.27,7.91951272]
[1765876622428,8.46668853,126.3,126.27,8.59951272]
[1765876622722,0.71,126.3,126.27,8.59951272]
[1765876623328,20.80377973,126.31,126.28,0.68]
[1765876623508,21.49377973,126.31,126.28,0.68]
[1765876623820,29.41086739,126.31,126.27,7.91951272]
[1765876624114,29.41086739,126.31,126.27,8.59951272]
[1765876624325,29.41086739,126.31,126.28,7.91884154]
[1765876624509,29.41086739,126.31,126.28,8.59884154]
[1765876625431,29.41086739,126.31,126.26,89.45632332]
[1765876625432,7.75668853,126.3,126.26,61.9]
[1765876625602,7.75668853,126.29,126.27,7.91951376]
[1765876625801,7.75668853,126.3,126.27,8.59951376]
[1765876625998,20.96417886,126.31,126.27,7.91951376]
[1765876626201,21.49377973,126.31,126.28,0.68]
[1765876626497,7.75668853,126.32,126.28,0.68]
[1765876626703,15.67269498,126.33,126.28,8.43668853]
[1765876626904,0.69,126.32,126.28,8.43668853]
[1765876627145,7.75668853,126.31,126.28,0.68]
[1765876627305,7.75668853,126.3,126.27,70.49951376]
[1765876627505,7.75668853,126.28,126.25,7.92077711]
[1765876627716,7.75668853,126.27,126.24,8.60105717]
[1765876627915,7.75668853,126.27,126.25,0.68]
[1765876628115,29.41229176,126.29,126.25,0.68]
[1765876628319,28.72229176,126.29,126.25,0.68]
[1765876628739,29.41229176,126.29,126.25,0.68]
[1765876629227,28.72229176,126.29,126.25,0.68]
[1765876629530,29.41229176,126.29,126.26,7.92016473]
[1765876630028,29.41229176,126.29,126.26,8.60016473]
[1765876631203,7.75668853,126.27,126.23,0.68]
[1765876631401,9.49994492,126.28,126.23,0.68]
[1765876631402,7.75668853,126.25,126.23,0.68]
[1765876632031,7.75668853,126.26,126.23,0.68]
[1765876632332,15.67692952,126.26,126.23,0.68]
[1765876632530,16.36692952,126.26,126.23,0.68]
[1765876633328,7.75668853,126.26,126.23,8.60191328]
[1765876633534,28.2637236,126.26,126.23,8.60191328]
[1765876633908,12.60494063,126.25,126.23,8.60191328]
[1765876634110,15.65878297,126.26,126.24,8.60083673]
[1765876634308,15.65878297,126.26,126.24,21.20577736]
[1765876634631,15.65878297,126.26,126.25,13.28494063]
[1765876635421,15.65878297,126.26,126.25,5.20102478]
[1765876635823,15.65878297,126.26,126.25,14.0109697]
[1765876636301,15.65878297,126.26,126.25,83.83176177]
[1765876636702,4.52102478,126.33,126.26,8.80994492]
[1765876636928,4.52102478,126.33,126.28,4.52102478]
[1765876637132,8.60530197,126.34,126.27,0.68]
[1765876637338,17.56811598,126.33,126.28,4.52102478]
[1765876637512,36.9657444,126.33,126.28,4.52102478]
[1765876637707,36.9657444,126.33,126.29,0.68]
[1765876638114,45.57156013,126.33,126.29,8.59768252]
[1765876638316,4.52102478,126.31,126.28,7.91872619]
[1765876638526,4.52102478,126.31,126.28,8.59872619]
[1765876638933,5.21102478,126.32,126.29,8.59815092]
[1765876639235,19.39762842,126.33,126.29,13.1191757]
[1765876639424,19.39762842,126.33,126.3,0.68]
[1765876639623,19.39762842,126.33,126.3,5.20102478]
[1765876639829,19.39762842,126.33,126.31,4.52102478]
[1765876640014,19.39762842,126.33,126.31,5.20102478]
[1765876640215,19.39762842,126.33,126.32,8.59640278]
[1765876640844,19.39762842,126.33,126.32,0.68]
[1765876642046,19.39762842,126.33,126.32,8.59640278]
[1765876642842,23.9186532,126.33,126.3,70.49711428]
[1765876643038,19.39762842,126.33,126.31,8.59699174]
[1765876643245,23.9186532,126.33,126.31,8.59699174]
[1765876643547,19.39762842,126.33,126.32,8.59640278]
[1765876643973,19.39762842,126.33,126.32,7.91640278]
[1765876644240,19.39762842,126.33,126.31,8.59677442]
[1765876644455,20.08762842,126.33,126.31,7.91677442]
[1765876644630,19.39762842,126.33,126.31,8.59677442]
[1765876646161,19.39762842,126.33,126.31,7.91677442]
[1765876646364,19.39762842,126.33,126.32,0.68]
[1765876646669,19.39762842,126.33,126.31,8.59677442]
[1765876647737,19.39762842,126.33,126.31,0.68]
[1765876648370,0.69,126.32,126.29,62.58]
[1765876648578,5.21102478,126.32,126.29,0.68]
[1765876649041,4.52102478,126.32,126.29,0.68]
[1765876649356,27.31356226,126.33,126.27,0.68]
[1765876649357,5.21102478,126.31,126.27,0.68]
[1765876649554,5.21102478,126.31,126.27,8.59910407]
[1765876649762,0.69,126.3,126.27,8.59910407]
[1765876650142,5.21102478,126.3,126.27,8.59910407]
[1765876650446,4.52102478,126.28,126.25,62.58]
[1765876650643,4.52102478,126.27,126.24,8.60123523]
[1765876650862,5.21102478,126.26,126.22,0.68]
[1765876651042,4.52102478,126.25,126.22,0.68]
[1765876651448,12.606372,126.25,126.22,0.68]
[1765876653058,12.606372,126.25,126.22,8.60263057]
[1765876653264,34.26406818,126.26,126.22,8.60263057]
[1765876654158,34.26406818,126.26,126.22,7.92263057]
[1765876654456,12.606372,126.25,126.23,0.7]
[1765876654755,13.266372,126.25,126.22,8.62263057]
[1765876655339,21.18729791,126.25,126.22,8.62263057]
[1765876655546,21.18729791,126.25,126.21,8.62295639]
[1765876655843,12.606372,126.24,126.21,8.62295639]
[1765876656044,12.606372,126.24,126.22,0.7]
[1765876657364,12.606372,126.24,126.21,8.62295639]
[1765876657561,20.52800979,126.24,126.19,12.606372]
[1765876657766,12.606372,126.22,126.19,70.52422121]
[1765876658142,12.606372,126.22,126.2,0.7]
[1765876658541,13.266372,126.23,126.2,8.62390042]
[1765876660180,0.66,126.22,126.19,69.82447623]
[1765876660469,13.266372,126.22,126.19,70.48447623]
[1765876660771,12.606372,126.22,126.19,70.48447623]
[1765876661668,21.18924244,126.22,126.19,8.58447623]
[1765876663168,12.606372,126.22,126.2,0.66]
[1765876663869,13.0470912,126.23,126.2,8.58367941]
[1765876664162,20.96916505,126.23,126.21,0.66]
[1765876664472,13.0470912,126.23,126.21,0.66]
[1765876664765,25.6534632,126.23,126.2,8.58367941]
[1765876665065,33.57565995,126.23,126.2,7.92367941]
[1765876665239,0.66,126.22,126.19,7.92423777]
[1765876665442,13.266372,126.22,126.19,8.58423777]
[1765876665643,13.266372,126.22,126.2,0.66]
[1765876665644,20.52908163,126.22,126.2,0.66]
[1765876666765,13.7070912,126.23,126.2,0.66]
[1765876666766,34.23575969,126.23,126.2,0.66]
[1765876667575,33.57575969,126.23,126.2,0.66]
[1765876667868,34.23575969,126.23,126.2,0.66]
[1765876669055,21.62938769,126.23,126.2,0.66]
[1765876669254,21.18799143,126.24,126.2,8.58362406]
[1765876669570,8.58161943,126.24,126.2,8.58362406]
[1765876669743,21.19015569,126.24,126.2,8.58362406]
[1765876670672,21.19015569,126.24,126.2,7.92362406]
[1765876670867,21.19015569,126.24,126.21,0.66]
[1765876671262,33.57665252,126.25,126.21,8.58329209]
[1765876671470,17.5724132,126.25,126.21,70.48329209]
[1765876671658,13.1058036,126.26,126.22,0.66]
[1765876672172,12.4458036,126.26,126.22,0.66]
[1765876672476,13.1058036,126.26,126.22,0.66]
[1765876672671,4.525322,126.26,126.22,0.66]
[1765876672971,12.44516395,126.27,126.23,7.92204705]
[1765876673274,13.10516395,126.27,126.23,7.92204705]
[1765876673478,13.10516395,126.27,126.23,8.58204705]
[1765876673771,13.10516395,126.27,126.24,0.66]
[1765876676379,13.10516395,126.27,126.24,8.58137055]
[1765876676558,4.525322,126.27,126.24,8.58137055]
[1765876676883,4.525322,126.27,126.25,0.66]
[1765876677282,5.185322,126.26,126.22,61.9]
[1765876677492,17.5724132,126.23,126.19,0.66]
[1765876677787,17.5724132,126.23,126.17,0.66]
[1765876677788,17.5724132,126.2,126.17,0.66]
[1765876677954,4.525322,126.19,126.17,0.66]
[1765876678284,4.525322,126.19,126.17,8.58576729]
[1765876678589,4.525322,126.21,126.17,13.11108929]
[1765876678756,5.185322,126.22,126.18,0.66]
[1765876680190,25.4947771,126.23,126.18,0.66]
[1765876680359,18.2324132,126.23,126.19,7.9245582]
[1765876680659,4.525322,126.22,126.19,7.9245582]
[1765876680859,4.525322,126.22,126.19,8.5845582]
[1765876681085,21.62935753,126.23,126.2,0.66]
[1765876681265,0.66,126.26,126.2,0.66]
[1765876681482,12.44486903,126.27,126.22,4.525322]
[1765876681779,7.91922998,126.28,126.23,4.525322]
[1765876681980,4.525322,126.28,126.23,4.525322]
[1765876682174,17.5724132,126.28,126.24,0.66]
[1765876682370,17.5724132,126.28,126.25,7.92079207]
[1765876682566,18.2624132,126.28,126.25,7.92079207]
[1765876682767,18.2624132,126.28,126.25,8.62079207]
[1765876683406,26.33722011,126.28,126.25,8.62079207]
[1765876684297,34.25622701,126.28,126.25,7.92079207]
[1765876684463,34.25622701,126.28,126.25,0.7]
[1765876684664,8.60792928,126.3,126.26,0.7]
[1765876684970,20.5173639,126.31,126.26,13.30012891]
[1765876685168,21.2073639,126.31,126.26,13.30012891]
[1765876685382,21.2073639,126.31,126.27,0.7]
[1765876686896,21.2073639,126.31,126.27,8.6189923]
[1765876687205,12.60012891,126.29,126.26,7.91993438]
[1765876687502,25.64722011,126.28,126.25,7.92049176]
[1765876687863,26.33722011,126.28,126.25,8.62049176]
[1765876688104,25.64722011,126.28,126.25,8.62049176]
[1765876688664,13.0470912,126.28,126.25,8.62049176]
[1765876688888,26.33722011,126.28,126.25,8.62049176]
[1765876689995,12.60012891,126.26,126.24,7.92127306]
[1765876690216,12.60012891,126.26,126.24,8.62127306]
[1765876691884,13.29012891,126.27,126.24,8.62127306]
[1765876692506,13.29012891,126.26,126.23,7.92197039]
[1765876692687,12.60012891,126.26,126.23,8.62197039]
[1765876694478,13.29012891,126.26,126.23,8.62197039]
[1765876694676,13.29012891,126.26,126.23,7.92197039]
[1765876694876,13.29012891,126.26,126.23,8.62197039]
[1765876695404,8.44666535,126.26,126.23,8.62197039]
[1765876698804,16.36686807,126.26,126.23,8.62197039]
[1765876699790,7.75666535,126.26,126.23,8.62197039]
[1765876700306,7.75666535,126.26,126.24,0.7]
[1765876700505,16.36620284,126.27,126.24,0.7]
[1765876701411,7.75666535,126.27,126.24,8.62121181]
[1765876701710,20.80375655,126.28,126.24,8.62121181]
[1765876701916,20.80375655,126.28,126.25,0.7]
[1765876702212,13.7370912,126.28,126.25,0.7]
[1765876702392,29.41284537,126.28,126.25,0.7]
[1765876703111,21.65618002,126.28,126.25,0.7]
[1765876703315,20.80375655,126.28,126.25,8.62063944]
[1765876703625,7.91859916,126.29,126.25,11.51517342]
[1765876703915,7.91859916,126.29,126.26,0.7]
[1765876704288,8.60859916,126.29,126.26,0.7]
[1765876704686,7.91859916,126.29,126.26,0.7]
[1765876705490,7.91859916,126.29,126.26,8.62011685]
[1765876706414,11.5025056,126.3,126.26,8.62011685]
[1765876706716,0.69,126.29,126.26,8.62011685]
[1765876707095,3.58453398,126.29,126.26,8.62011685]
[1765876707924,7.91797162,126.3,126.27,0.7]
[1765876708219,0.69,126.29,126.26,8.62011685]
[1765876709046,10.8125056,126.3,126.25,27.72222359]
[1765876709190,23.89695071,126.31,126.27,0.7]
[1765876709191,6.99790736,126.31,126.27,0.7]
[1765876709396,3.58453398,126.31,126.27,0.7]
[1765876709599,23.85833735,126.32,126.27,0.7]
[1765876709909,19.39762842,126.33,126.29,2.89453398]
[1765876710424,20.08762842,126.33,126.3,0.7]
[1765876710792,19.39762842,126.33,126.3,8.61715492]
[1765876710990,20.08762842,126.33,126.3,8.61715492]
[1765876711194,19.39762842,126.33,126.3,7.91715492]
[1765876711426,20.08762842,126.33,126.3,8.61715492]
[1765876711925,19.39762842,126.33,126.31,0.7]
[1765876712227,19.39762842,126.33,126.31,3.59453398]
[1765876712603,19.39762842,126.33,126.32,0.71]
[1765876712809,19.39762842,126.33,126.32,8.62640278]
[1765876713223,19.39762842,126.33,126.32,11.52093676]
[1765876714209,19.39762842,126.33,126.32,8.62640278]
[1765876714410,19.39762842,126.33,126.32,11.52093676]
[1765876715634,19.39762842,126.33,126.32,82.23088168]
[1765876720953,1e-08,126.33,126.32,82.23088168]
[1765876721458,1e-08,126.33,126.32,95.27797288]
[1765876721623,0.1,126.39,126.36,8.80994492]
[1765876721818,0.1,126.39,126.37,2.89453398]
[1765876722134,0.1,126.39,126.37,3.60453398]
[1765876722343,0.1,126.39,126.38,0.71]
[1765876722543,0.1,126.39,126.36,0.71]
[1765876722848,0.1,126.39,126.37,0.71]
[1765876723249,0.81,126.39,126.37,7.91297536]
[1765876724073,3.70453398,126.39,126.37,7.91297536]
[1765876724746,3.60453398,126.38,126.34,19.78688032]
[1765876724948,3.60453398,126.38,126.34,20.49688032]
[1765876725143,3.60453398,126.38,126.35,7.91452314]
[1765876725454,0.1,126.39,126.35,28.41083101]
[1765876725643,0.1,126.39,126.36,0.71]
[1765876725828,0.81,126.39,126.36,0.71]
[1765876726030,2.89453398,126.38,126.35,7.91452314]
[1765876726474,3.60453398,126.37,126.35,7.91452314]
[1765876726933,0.71,126.37,126.35,7.91452314]
[1765876727135,3.60453398,126.37,126.35,7.91452314]
[1765876727363,3.60453398,126.37,126.34,7.91514959]
[1765876728452,0.71,126.36,126.34,7.91514959]
[1765876728837,7.91282589,126.38,126.34,7.91514959]
[1765876728838,3.60453398,126.37,126.34,7.91514959]
[1765876729064,0.71,126.37,126.33,7.91548512]
[1765876729261,8.01211548,126.39,126.34,0.71]
[1765876729467,11.61664946,126.39,126.34,0.71]
[1765876729669,0.71,126.38,126.35,7.91452314]
[1765876730244,0.71,126.38,126.35,8.62452314]
[1765876730548,3.60453398,126.38,126.35,7.91452314]
[1765876730742,3.60453398,126.38,126.35,8.62452314]
[1765876731766,0.71,126.37,126.35,7.91452314]
[1765876732057,3.60453398,126.38,126.35,7.91452314]
[1765876732265,3.60453398,126.38,126.35,8.62452314]
[1765876732639,8.01211548,126.39,126.35,8.62452314]
[1765876732640,3.60453398,126.37,126.35,7.91452314]
[1765876733759,3.60453398,126.37,126.34,27.70239515]
[1765876734664,3.60453398,126.37,126.34,90.31239515]
[1765876735138,0.71,126.37,126.34,90.31239515]
[1765876735343,8.01211548,126.39,126.35,0.71]
[1765876735344,3.60453398,126.38,126.35,0.71]
[1765876736280,3.70453398,126.39,126.36,7.9138968]
[1765876736448,0.81,126.39,126.36,7.9138968]
[1765876736651,0.81,126.39,126.36,8.6238968]
[1765876737382,3.70453398,126.39,126.36,7.9138968]
[1765876737555,2.89453398,126.38,126.36,7.9138968]
[1765876737748,3.59999523,126.38,126.36,7.9138968]
[1765876738679,3.59999523,126.38,126.35,27.70042075]
[1765876738989,3.59999523,126.38,126.35,28.41042075]
[1765876740161,0.71,126.38,126.35,28.41042075]
[1765876740680,0.71,126.38,126.35,90.31042075]
[1765876741286,3.59999523,126.38,126.35,90.31042075]
[1765876741784,2.88999523,126.38,126.35,89.60042075]
[1765876742081,0.71,126.38,126.36,7.91362058]
[1765876742581,3.59999523,126.38,126.35,61.9]
[1765876742883,3.59999523,126.38,126.35,62.58]
[1765876743484,2.88999523,126.38,126.35,70.49444822]
[1765876743784,3.57999523,126.38,126.35,70.49444822]
[1765876743991,3.57999523,126.37,126.35,61.9]
[1765876744883,0.69,126.37,126.35,61.9]
[1765876745091,3.57999523,126.37,126.35,61.9]
[1765876746487,3.57999523,126.37,126.34,8.59489846]
[1765876748062,0.69,126.37,126.34,8.59489846]
[1765876748258,3.57999523,126.37,126.34,8.59489846]
[1765876748592,0.69,126.38,126.35,0.68]
[1765876749497,0.69,126.38,126.34,11.48489369]
[1765876749886,0.69,126.38,126.35,0.68]
[1765876752023,0.69,126.38,126.35,8.59424266]
[1765876753591,0.69,126.38,126.36,0.68]
[1765876754116,0.1,126.39,126.36,0.68]
[1765876754259,0.79,126.39,126.36,0.68]
[1765876755304,0.1,126.39,126.36,0.68]
[1765876755598,0.1,126.39,126.36,5.19388768]
[1765876755988,0.1,126.39,126.38,7.9126444]
[1765876757291,0.1,126.39,126.38,16.4926444]
[1765876757671,0.1,126.39,126.38,17.1726444]
[1765876757868,0.1,126.39,126.38,16.4926444]
[1765876758076,0.1,126.39,126.38,17.1726444]
[1765876761196,0.1,126.39,126.38,21.68653208]
[1765876761381,0.1,126.39,126.38,30.496477]
[1765876761582,0.1,126.39,126.38,92.396477]
[1765876768192,0.1,126.39,126.38,75.00653208]
[1765876768398,0.1,126.39,126.38,79.0726444]
[1765876769209,0.1,126.39,126.38,83.58653208]
[1765876773614,0.1,126.39,126.38,8.58]
[1765876773615,5.28388768,126.39,126.38,8.58]
[1765876782426,0.1,126.39,126.38,8.58]
[1765876782605,0.77,126.39,126.36,20.49425491]
[1765876782799,0.77,126.39,126.38,8.58]
[1765876783823,0.77,126.39,126.37,7.91287425]
[1765876784007,0.77,126.39,126.38,8.6]
[1765876784496,0.77,126.39,126.38,16.5126444]
[1765876788829,0.77,126.39,126.38,8.6]
[1765876789200,0.1,126.39,126.38,8.6]
[1765876789404,0.1,126.39,126.38,9.31]
[1765876789834,0.1,126.39,126.38,8.6]
[1765876791042,0.1,126.39,126.38,16.5126444]
[1765876795447,0.1,126.39,126.38,17.2226444]
[1765876795626,0.1,126.39,126.38,21.73653208]
[1765876797138,0.1,126.39,126.38,83.63653208]
[1765876799327,0.1,126.39,126.38,79.1226444]
[1765876801922,0.1,126.39,126.38,83.63653208]
[1765876802935,0.1,126.39,126.38,21.73653208]
[1765876804542,0.1,126.39,126.38,92.446477]
[1765876804721,1e-08,126.4,126.39,0.65]
[1765876804920,1e-08,126.4,126.39,5.16388768]
[1765876806252,1e-08,126.4,126.39,13.07236895]
[1765876808945,1e-08,126.4,126.39,74.97236895]
[1765876811726,1e-08,126.4,126.39,83.78231387]
[1765876812343,1e-08,126.4,126.39,92.38231387]
[1765876813751,39.54937249,126.43,126.41,8.80994492]
[1765876813957,39.54937249,126.43,126.42,21.92029552]
[1765876814254,39.54937249,126.43,126.42,27.08064612]
[1765876815029,0.1,126.44,126.43,8.80994492]
[1765876815231,0.1,126.44,126.43,21.87981066]
[1765876815631,1e-08,126.44,126.43,83.77981065]
[1765876817053,1e-08,126.46,126.45,21.85703612]
[1765876817252,1e-08,126.46,126.45,88.91738671]
[1765876817448,1e-08,126.46,126.45,95.89067077]
[1765876818347,0.1,126.47,126.45,95.89067077]
[1765876818348,1e-08,126.47,126.46,0.65]
[1765876818561,1e-08,126.47,126.46,3.53363466]
[1765876819365,1e-08,126.47,126.46,11.44127343]
[1765876820139,1e-08,126.47,126.46,82.15121834]
[1765876821038,1e-08,126.47,126.46,106.31788416]
[1765876821652,1e-08,126.47,126.46,109.20151882]
[1765876822048,0.1,126.52,126.49,13.0470912]
[1765876822268,0.1,126.52,126.51,2.88363466]
[1765876822640,0.1,126.52,126.51,3.53363466]
[1765876823371,0.1,126.52,126.51,74.24357957]
[1765876823573,0.1,126.53,126.52,8.80994492]
[1765876823739,1e-08,126.54,126.52,95.89067077]
[1765876824065,1e-08,126.54,126.53,20.24684362]
[1765876824262,34.00921426,126.59,126.55,13.0470912]
[1765876824443,3.58363466,126.58,126.53,27.66142416]
[1765876824646,3.58363466,126.58,126.54,8.6]
[1765876824842,0.7,126.57,126.54,8.6]
[1765876825968,0.7,126.57,126.55,7.90201501]
[1765876826249,0.7,126.57,126.56,8.6]
[1765876827042,3.58363466,126.57,126.56,8.6]
[1765876827346,11.4844766,126.57,126.53,7.90302097]
[1765876827546,2.88363466,126.55,126.53,7.90302097]
[1765876827772,2.88363466,126.55,126.53,16.50302097]
[1765876828070,0.7,126.54,126.53,16.50302097]
[1765876828567,0.7,126.54,126.53,8.6]
[1765876828772,3.58363466,126.54,126.51,7.90428283]
[1765876829065,2.88363466,126.52,126.47,28.57658264]
[1765876829273,2.88363466,126.52,126.48,16.50638836]
[1765876829449,0.7,126.51,126.48,16.50638836]
[1765876829775,0.7,126.51,126.48,36.27235926]
[1765876830566,13.0470912,126.54,126.5,10.78877299]
[1765876830752,13.7470912,126.54,126.51,8.6]
[1765876830951,0.7,126.53,126.51,8.6]
[1765876831164,0.7,126.53,126.51,11.48363466]
[1765876831692,0.7,126.53,126.51,8.6]
[1765876832476,2.88363466,126.55,126.51,11.48363466]
[1765876832678,0.72,126.55,126.52,27.66361049]
[1765876832850,0.72,126.55,126.53,8.6]
[1765876835366,3.60363466,126.55,126.53,16.50314189]
[1765876835770,0.7,126.54,126.53,16.50314189]
[1765876836776,3.58363466,126.54,126.53,8.6]
[1765876841290,0.7,126.54,126.53,8.6]
[1765876841489,3.58363466,126.54,126.53,8.6]
[1765876842989,0.7,126.54,126.53,8.6]
[1765876843189,11.48627414,126.54,126.48,70.70994492]
[1765876843403,11.48627414,126.54,126.49,16.5057633]
[1765876843404,2.88363466,126.51,126.49,16.5057633]
[1765876843891,0.7,126.5,126.49,16.5057633]
[1765876844093,40.70632938,126.54,126.49,16.5057633]
[1765876844389,0.7,126.51,126.49,7.9057633]
[1765876844688,0.7,126.51,126.5,8.6]
[1765876845670,3.58363466,126.53,126.5,8.6]
[1765876845968,0.7,126.52,126.5,8.6]
[1765876847283,0.7,126.52,126.5,16.50490717]
[1765876847992,0.7,126.52,126.48,61.9]
[1765876847993,2.88363466,126.51,126.48,61.9]
[1765876848193,2.88363466,126.51,126.49,16.50566754]
[1765876848493,0.7,126.5,126.49,16.50566754]
[1765876848867,0.7,126.5,126.49,8.6]
[1765876850409,2.88363466,126.51,126.49,8.6]
[1765876850688,0.7,126.52,126.49,17.18523478]
[1765876850878,0.7,126.52,126.49,36.94964303]
[1765876851476,20.95012202,126.54,126.5,0.68]
[1765876851477,16.63072586,126.54,126.5,0.68]
[1765876851670,16.63072586,126.54,126.51,8.6]
[1765876852005,3.58363466,126.54,126.51,8.6]
[1765876852696,3.58363466,126.54,126.51,16.50405697]
[1765876852993,3.58363466,126.53,126.51,16.50405697]
[1765876854577,2.88363466,126.53,126.51,16.50405697]
[1765876854883,0.7,126.52,126.51,16.50405697]
[1765876855086,2.88363466,126.53,126.51,16.50405697]
[1765876855284,3.58363466,126.53,126.51,16.50405697]
[1765876856287,0.7,126.53,126.51,16.50405697]
[1765876856496,0.7,126.53,126.51,78.40405697]
[1765876858303,3.58363466,126.53,126.51,78.40405697]
[1765876858977,3.58363466,126.52,126.51,61.9]
[1765876859871,3.58363466,126.52,126.5,8.6]
[1765876860110,3.58363466,126.51,126.5,8.6]
[1765876860399,0.7,126.51,126.5,8.6]
[1765876860597,3.58363466,126.51,126.49,7.90549815]
[1765876860902,2.88363466,126.5,126.47,7.90673453]
[1765876861109,3.58363466,126.5,126.47,16.50673453]
[1765876861285,3.58363466,126.5,126.47,17.18673453]
[1765876864013,0.7,126.5,126.47,17.18673453]
[1765876864189,3.58363466,126.5,126.47,17.18673453]
[1765876864903,0.65,126.49,126.47,16.50673453]
[1765876865202,3.53363466,126.5,126.47,17.20673453]
[1765876867509,0.65,126.5,126.47,17.20673453]
[1765876867827,3.53363466,126.52,126.48,3.58363466]
[1765876868126,3.53363466,126.52,126.49,8.6]
[1765876868320,0.65,126.52,126.49,9.3]
[1765876868501,0.65,126.52,126.5,7.90513833]
[1765876870888,16.58072586,126.53,126.5,8.60513833]
[1765876871089,15.93072586,126.53,126.51,8.6]
[1765876871309,16.58072586,126.53,126.51,8.6]